fUSD/lending_fUSD_20260425
["ID","MTS","AMOUNT","RATE_DAILY","PERIOD"]
[421128465,1777121432481,-150.0,9.641e-05,2]
[421128466,1777121432491,-150.0,9.679e-05,2]
[421128467,1777121432506,-151.0,9.685e-05,2]
[421128468,1777121432517,-150.0,9.704e-05,2]
[421128469,1777121432527,-151.0,9.74e-05,2]
[421128470,1777121432537,-150.0,9.746e-05,2]
[421128471,1777121432548,-150.0,9.746e-05,2]
[421128472,1777121432559,-150.0,9.746e-05,2]
[421128473,1777121432569,-150.0,9.767e-05,2]
[421128474,1777121432580,-151.0,9.795e-05,2]
[421128475,1777121432590,-500.0,9.808e-05,2]
[421128476,1777121432601,-150.0,9.828e-05,2]
[421128477,1777121432611,-150.0,9.828e-05,2]
[421128478,1777121432621,-150.0,9.828e-05,2]
[421128479,1777121432631,-231.10414067,9.828e-05,2]
[421128480,1777121432641,-150.0,9.83e-05,2]
[421128481,1777121432652,-150.0,9.83e-05,2]
[421128482,1777121432662,-150.0,9.83e-05,2]
[421128483,1777121432672,-151.0,9.85e-05,2]
[421128484,1777121432683,-500.0,9.852e-05,2]
[421128485,1777121432692,-150.0,9.881e-05,2]
[421128486,1777121432703,-150.0,9.893e-05,2]
[421128487,1777121432713,-151.0,9.905e-05,2]
[421128488,1777121432723,-150.0,9.914e-05,2]
[421128489,1777121432732,-150.0,9.956e-05,2]
[421128490,1777121432743,-151.0,9.96e-05,2]
[421128491,1777121432753,-183.0,9.98e-05,2]
[421128492,1777121432763,-177.14,0.0001,2]
[421128493,1777121432773,-151.0,0.0001,2]
[421128494,1777121432783,-151.0,0.0001,2]
[421128495,1777121432793,-151.0,0.0001,2]
[421128496,1777121432803,-151.0,0.0001,2]
[421128497,1777121432813,-151.0,0.0001,2]
[421128498,1777121432823,-151.0,0.0001,2]
[421128499,1777121432833,-151.0,0.0001,2]
[421128500,1777121432843,-151.0,0.0001,2]
[421128501,1777121432854,-151.0,0.0001,2]
[421128502,1777121432864,-151.0,0.0001,2]
[421128503,1777121432874,-151.0,0.0001,2]
[421128504,1777121432884,-151.0,0.0001,2]
[421128505,1777121432895,-151.0,0.0001,2]
[421128506,1777121432910,-5000.0,0.00010004,2]
[421128507,1777121432920,-2500.0,0.00010004,2]
[421128508,1777121432930,-151.0,0.00010015,2]
[421128509,1777121432940,-150.0,0.00010019,2]
[421128510,1777121432950,-2008.46655144,0.00010042,2]
[421128511,1777121432961,-151.0,0.0001007,2]
[421128512,1777121432971,-150.0,0.00010082,2]
[421128513,1777121432980,-150.0,0.00010082,2]
[421128514,1777121432990,-150.0,0.00010082,2]
[421128515,1777121433001,-150.00000001,0.00010082,2]
[421128516,1777121433012,-177.31547693,0.00010082,2]
[421128517,1777121433022,-150.0,0.00010082,2]
[421128518,1777121433032,-240.30270347,0.00010082,2]
[421128519,1777121433042,-150.0,0.00010082,2]
[421128520,1777121433052,-150.0,0.00010082,2]
[421128521,1777121433063,-188.68747643,0.00010103,2]
[421128522,1777121433073,-500.0,0.00010103,2]
[421128523,1777121433083,-588.57809254,0.00010103,2]
[421128524,1777121433093,-500.0,0.00010103,2]
[421128525,1777121433103,-500.0,0.00010103,2]
[421128526,1777121433113,-500.0,0.00010103,2]
[421128527,1777121433123,-500.0,0.00010103,2]
[421128528,1777121433133,-500.0,0.00010103,2]
[421128529,1777121433143,-500.0,0.00010103,2]
[421128530,1777121433153,-181.9110341,0.00010103,2]
[421128531,1777121433163,-500.0,0.00010103,2]
[421128532,1777121433173,-590.61314386,0.00010103,2]
[421128533,1777121433183,-611.08821602,0.00010103,2]
[421128534,1777121433193,-500.0,0.00010103,2]
[421128535,1777121433203,-500.0,0.00010103,2]
[421128536,1777121433213,-483.78385603,0.00010103,2]
[421128537,1777121433223,-500.0,0.00010103,2]
[421128538,1777121433233,-500.0,0.00010103,2]
[421128539,1777121433243,-500.0,0.00010103,2]
[421128540,1777121433253,-500.0,0.00010103,2]
[421128541,1777121433263,-500.0,0.00010103,2]
[421128542,1777121433273,-199.16677021,0.00010103,2]
[421128543,1777121433283,-500.0,0.00010103,2]
[421128544,1777121433293,-500.0,0.00010103,2]
[421128545,1777121433303,-181.08535147,0.00010103,2]
[421128546,1777121433317,-500.0,0.00010103,2]
[421128547,1777121433326,-500.0,0.00010103,2]
[421128548,1777121433336,-500.0,0.00010103,2]
[421128549,1777121433346,-500.0,0.00010103,2]
[421128550,1777121433356,-500.0,0.00010103,2]
[421128551,1777121433366,-500.0,0.00010103,2]
[421128552,1777121433378,-500.0,0.00010103,2]
[421128553,1777121433388,-500.0,0.00010103,2]
[421128554,1777121433399,-500.0,0.00010103,2]
[421128555,1777121433409,-500.0,0.00010103,2]
[421128556,1777121433419,-500.0,0.00010103,2]
[421128557,1777121433429,-500.0,0.00010103,2]
[421128558,1777121433439,-500.0,0.00010103,2]
[421128559,1777121433449,-500.0,0.00010103,2]
[421128560,1777121433459,-500.0,0.00010103,2]
[421128561,1777121433469,-500.0,0.00010103,2]
[421128562,1777121433479,-465.93054876,0.00010103,2]
[421128563,1777121433490,-500.0,0.00010103,2]
[421128564,1777121433500,-183.1831921,0.00010103,2]
[421128565,1777121433511,-196.37199307,0.00010103,2]
[421128566,1777121433522,-500.0,0.00010103,2]
[421128567,1777121433533,-500.0,0.00010103,2]
[421128568,1777121433544,-518.1316577,0.00010103,2]
[421128569,1777121433554,-507.60294501,0.00010103,2]
[421128570,1777121433564,-500.0,0.00010103,2]
[421128571,1777121433574,-500.0,0.00010103,2]
[421128572,1777121433584,-500.0,0.00010103,2]
[421128573,1777121433595,-500.0,0.00010103,2]
[421128574,1777121433605,-500.0,0.00010103,2]
[421128575,1777121433615,-500.0,0.00010103,2]
[421128576,1777121433625,-500.0,0.00010103,2]
[421128577,1777121433636,-500.0,0.00010103,2]
[421128578,1777121433647,-500.0,0.00010103,2]
[421128579,1777121433657,-500.0,0.00010103,2]
[421128580,1777121433667,-500.0,0.00010103,2]
[421128581,1777121433676,-500.0,0.00010103,2]
[421128582,1777121433686,-333.34159226,0.00010103,2]
[421128583,1777121433696,-150.0,0.00010103,2]
[421128584,1777121433707,-1409712.28000737,0.00010104,2]
[421128585,1777121433724,-77029.09045568,0.00010104,2]
[421128586,1777121433736,-153602.7658969,0.00010104,2]
[421128587,1777121433759,-268.0,0.00010104,2]
[421128588,1777121433785,-534.06656813,0.00010104,2]
[421128593,1777121438364,-1620.0,0.00010104,2]
[421128594,1777121438574,-745.46632711,0.00010104,2]
[421128637,1777121440682,-80259.64856989,0.00010104,2]
[421128638,1777121440694,-36659.33004994,0.00010104,2]
[421128639,1777121440737,-1425.82817633,0.00010104,2]
[421128640,1777121440749,-967.30682294,0.00010104,2]
[421128649,1777121443277,-7791.66115632,0.00010104,2]
[421128650,1777121443288,-1579.0,0.00010104,2]
[421128651,1777121443492,-810.70186814,0.00010104,2]
[421128652,1777121443503,-541.39864331,0.00010104,2]
[421128660,1777121446822,-994.30618172,0.00010104,2]
[421128663,1777121446834,-2022.61147718,0.00010104,2]
[421128670,1777121478703,-10000.01,9.3e-05,2]
[421128671,1777121491702,-10000.01,9.3e-05,2]
[421128672,1777122034894,-10000.01,8.7e-05,2]
[421128673,1777122035072,-10000.01,8.7e-05,2]
[421128674,1777122035239,-10000.01,8.7e-05,2]
[421128675,1777122035368,-10000.01,8.7e-05,2]
[421128676,1777122035482,-10000.01,8.7e-05,2]
[421128677,1777122035611,-10000.01,8.7e-05,2]
[421128678,1777122035702,-10000.01,8.7e-05,2]
[421128679,1777122035816,-10000.01,8.7e-05,2]
[421128680,1777122035969,-10000.01,8.7e-05,2]
[421128681,1777122037879,-10000.01,8.7e-05,2]
[421128683,1777122134199,-300.0,8.698e-05,2]
[421128684,1777122181282,300.0,8.698e-05,2]
[421128685,1777122182349,300.0,8.698e-05,2]
[421128686,1777122187527,155.0,8.698e-05,3]
[421128687,1777122227976,4158.2834,8.6e-05,2]
[421128688,1777122234000,4486.7266,8.6e-05,2]
[421128689,1777122234049,10000.01,8.6e-05,2]
[421128690,1777122234097,10000.01,8.6e-05,2]
[421128691,1777122234142,10000.01,8.6e-05,2]
[421128692,1777122234181,6640.1198,8.6e-05,2]
[421128693,1777122261888,-156.0,8.6e-05,3]
[421128694,1777122307632,-156.0,8.6e-05,3]
[421128695,1777122307664,-300.0,8.698e-05,2]
[421128696,1777122307697,-300.0,8.698e-05,2]
[421128697,1777122307730,-262.0,8.698e-05,2]
[421128698,1777122307764,-1200.0,8.698e-05,2]
[421128699,1777122309493,155.0,8.6e-05,3]
[421128701,1777122361823,150.0,8.698e-05,2]
[421128702,1777122373119,156.0,8.6e-05,3]
[421128703,1777122429149,157.0,8.6e-05,3]
[421128705,1777122438511,9537.01,8.6e-05,2]
[421128706,1777122438536,10000.01,8.6e-05,2]
[421128707,1777122438560,10000.01,8.6e-05,2]
[421128708,1777122438584,10000.01,8.6e-05,2]
[421128709,1777122438607,10000.01,8.6e-05,2]
[421128710,1777122438631,10000.01,8.6e-05,2]
[421128711,1777122549048,-150.0,8.598e-05,2]
[421128712,1777122552842,250.0,8.599e-05,2]
[421128713,1777122610240,-570.41,8.544e-05,2]
[421128714,1777122610270,-1200.0,8.598e-05,2]
[421128715,1777122610299,-500.0,8.599e-05,2]
[421128716,1777122610927,157.0,8.599e-05,3]
[421128717,1777122610963,160.0,8.599e-05,3]
[421128718,1777122632495,-465.60852877,8.599e-05,2]
[421128719,1777122632509,-230.48638306,8.599e-05,2]
[421128722,1777122632525,-269.51361694,8.599e-05,2]
[421128724,1777122632535,-43.6178865,8.599e-05,2]
[421128735,1777122632631,-318.138866,8.599e-05,2]
[421128737,1777122632644,-138.2432475,8.599e-05,2]
[421128740,1777122632654,-163.69637829,8.599e-05,2]
[421128745,1777122632675,-336.30362171,8.599e-05,2]
[421128748,1777122632684,-500.0,8.599e-05,2]
[421128751,1777122632695,-485.93987012,8.599e-05,2]
[421128754,1777122632704,-500.0,8.599e-05,2]
[421128757,1777122632714,-399.5946933,8.599e-05,2]
[421128760,1777122632724,-500.0,8.599e-05,2]
[421128762,1777122632735,-500.0,8.599e-05,2]
[421128765,1777122632745,-500.0,8.599e-05,2]
[421128767,1777122632755,-500.0,8.599e-05,2]
[421128769,1777122632765,-500.0,8.599e-05,2]
[421128771,1777122632774,-500.0,8.599e-05,2]
[421128773,1777122633279,-500.0,8.599e-05,2]
[421128774,1777122633290,-500.0,8.599e-05,2]
[421128775,1777122633300,-500.0,8.599e-05,2]
[421128776,1777122633310,-500.0,8.599e-05,2]
[421128777,1777122633320,-162.23695555,8.599e-05,2]
[421128778,1777122633330,-500.0,8.599e-05,2]
[421128779,1777122633339,-500.0,8.599e-05,2]
[421128780,1777122633349,-500.0,8.599e-05,2]
[421128781,1777122633359,-500.0,8.599e-05,2]
[421128782,1777122633369,-500.0,8.599e-05,2]
[421128783,1777122633379,-500.0,8.599e-05,2]
[421128784,1777122633388,-500.0,8.599e-05,2]
[421128785,1777122633399,-500.0,8.599e-05,2]
[421128786,1777122633408,-500.0,8.599e-05,2]
[421128787,1777122633418,-500.0,8.599e-05,2]
[421128788,1777122633428,-500.0,8.599e-05,2]
[421128789,1777122633438,-500.0,8.599e-05,2]
[421128790,1777122633447,-500.0,8.599e-05,2]
[421128791,1777122633457,-500.0,8.599e-05,2]
[421128792,1777122633467,-500.0,8.599e-05,2]
[421128793,1777122633477,-500.0,8.599e-05,2]
[421128794,1777122633486,-500.0,8.599e-05,2]
[421128795,1777122633496,-500.0,8.599e-05,2]
[421128796,1777122633507,-500.0,8.599e-05,2]
[421128797,1777122633516,-500.0,8.599e-05,2]
[421128798,1777122633526,-500.0,8.599e-05,2]
[421128799,1777122633536,-500.0,8.599e-05,2]
[421128800,1777122633546,-500.0,8.599e-05,2]
[421128801,1777122633555,-500.0,8.599e-05,2]
[421128802,1777122633565,-500.0,8.599e-05,2]
[421128803,1777122633575,-500.0,8.599e-05,2]
[421128804,1777122633585,-500.0,8.599e-05,2]
[421128805,1777122633601,-500.0,8.599e-05,2]
[421128806,1777122633610,-500.0,8.599e-05,2]
[421128807,1777122633621,-500.0,8.599e-05,2]
[421128808,1777122633631,-278.9360557,8.599e-05,2]
[421128809,1777122633642,-500.0,8.599e-05,2]
[421128810,1777122633653,-500.0,8.599e-05,2]
[421128811,1777122633663,-500.0,8.599e-05,2]
[421128812,1777122633673,-500.0,8.599e-05,2]
[421128813,1777122633683,-500.0,8.599e-05,2]
[421128814,1777122633693,-500.0,8.599e-05,2]
[421128815,1777122633703,-500.0,8.599e-05,2]
[421128816,1777122633713,-500.0,8.599e-05,2]
[421128817,1777122633725,-500.0,8.599e-05,2]
[421128818,1777122633735,-500.0,8.599e-05,2]
[421128819,1777122633745,-500.0,8.599e-05,2]
[421128820,1777122633754,-500.0,8.599e-05,2]
[421128821,1777122633765,-500.0,8.599e-05,2]
[421128822,1777122633775,-500.0,8.599e-05,2]
[421128823,1777122633785,-500.0,8.599e-05,2]
[421128824,1777122633796,-500.0,8.599e-05,2]
[421128825,1777122633806,-500.0,8.599e-05,2]
[421128826,1777122633817,-500.0,8.599e-05,2]
[421128827,1777122633827,-500.0,8.599e-05,2]
[421128828,1777122633836,-500.0,8.599e-05,2]
[421128829,1777122633846,-500.0,8.599e-05,2]
[421128830,1777122633856,-500.0,8.599e-05,2]
[421128831,1777122633866,-500.0,8.599e-05,2]
[421128832,1777122633877,-500.0,8.599e-05,2]
[421128833,1777122633888,-500.0,8.599e-05,2]
[421128834,1777122633898,-500.0,8.599e-05,2]
[421128835,1777122633909,-500.0,8.599e-05,2]
[421128836,1777122633920,-500.0,8.599e-05,2]
[421128837,1777122633931,-500.0,8.599e-05,2]
[421128838,1777122633941,-500.0,8.599e-05,2]
[421128839,1777122633951,-500.0,8.599e-05,2]
[421128840,1777122633962,-629.14720395,8.599e-05,2]
[421128841,1777122633972,-500.0,8.599e-05,2]
[421128842,1777122633982,-150.0,8.599e-05,2]
[421128843,1777122633996,-500.0,8.599e-05,2]
[421128844,1777122634007,-500.0,8.599e-05,2]
[421128845,1777122634017,-500.0,8.599e-05,2]
[421128846,1777122634028,-500.0,8.599e-05,2]
[421128847,1777122634038,-500.0,8.599e-05,2]
[421128848,1777122634050,-84858.64528135,8.6e-05,2]
[421128849,1777122634065,-145714.04799379,8.6e-05,2]
[421128850,1777122634078,-539.5717158,8.6e-05,2]
[421128855,1777122638519,-321.09843752,8.6e-05,2]
[421129368,1777122643840,-250.99161065,8.6e-05,2]
[421129369,1777122643853,-31169.95835473,8.6e-05,2]
[421129370,1777122643966,-7089.3059686,8.6e-05,2]
[421129373,1777122643987,-262.0,8.6e-05,2]
[421129381,1777122647040,-3102.9968046,8.6e-05,2]
[421129386,1777122655172,-8479.71202798,8.6e-05,2]
[421129387,1777122655254,-10000.01,8.6e-05,2]
[421129388,1777122655286,-10000.01,8.6e-05,2]
[421129389,1777122655305,-10000.01,8.6e-05,2]
[421129390,1777122655343,-10000.01,8.6e-05,2]
[421129391,1777122655432,-10000.01,8.6e-05,2]
[421129392,1777122655548,-10000.01,8.6e-05,2]
[421129393,1777122655683,-10000.01,8.6e-05,2]
[421129394,1777122655798,-10000.01,8.6e-05,2]
[421129395,1777122660777,-10000.01,8.6e-05,2]
[421129396,1777122661157,-10000.01,8.6e-05,2]
[421129397,1777122661279,-10000.01,8.6e-05,2]
[421129398,1777122661388,-10000.01,8.6e-05,2]
[421129399,1777122661524,-10000.01,8.6e-05,2]
[421129400,1777122661609,-10000.01,8.6e-05,2]
[421129401,1777122661722,-10000.01,8.6e-05,2]
[421129402,1777122661837,-10000.01,8.6e-05,2]
[421129403,1777122661930,-10000.01,8.6e-05,2]
[421129404,1777122666921,-2957.61505059,8.599e-05,2]
[421129405,1777122677320,-250.0,8.6e-05,2]
[421129406,1777122679948,151.0,8.597e-05,2]
[421129407,1777122688703,2836.787,8.428e-05,2]
[421129408,1777122688754,231.463,8.428e-05,2]
[421129409,1777122722179,300.0,8.599e-05,2]
[421129410,1777122722221,150.0,8.599e-05,2]
[421129411,1777122775679,500.0,8.599e-05,2]
[421129412,1777122775727,202.62701843,8.599e-05,2]
[421129413,1777122775770,550.0,8.599e-05,2]
[421129414,1777122776243,500.0,8.599e-05,2]
[421129415,1777122776566,500.0,8.599e-05,2]
[421129416,1777122776877,500.0,8.599e-05,2]
[421129417,1777122779688,567.98176904,8.599e-05,2]
[421129418,1777122788120,586.53939181,8.599e-05,2]
[421129419,1777122791037,500.0,8.599e-05,2]
[421129420,1777122791072,500.0,8.599e-05,2]
[421129421,1777122791108,215.0,8.599e-05,2]
[421129422,1777122841939,300.0,8.599e-05,2]
[421129423,1777122901174,1200.0,8.599e-05,2]
[421129424,1777122901563,150.0,8.599e-05,2]
[421129425,1777123021247,300.0,8.599e-05,2]
[421129426,1777123081225,300.0,8.599e-05,2]
[421129427,1777123082820,150.0,8.599e-05,2]
[421129428,1777123143236,500.0,8.5e-05,2]
[421129429,1777123201155,300.0,8.599e-05,2]
[421129430,1777123201197,1200.0,8.599e-05,2]
[421129431,1777123261739,150.0,8.599e-05,2]
[421129432,1777123288621,2269.429,8.428e-05,2]
[421129433,1777123288744,185.17,8.428e-05,2]
[421129434,1777123308914,361.4334,8.5e-05,2]
[421129435,1777123321704,300.0,8.599e-05,2]
[421129436,1777123388502,300.0,8.599e-05,2]
[421129437,1777123429874,183.44,8.543e-05,2]
[421129438,1777123441783,150.0,8.599e-05,2]
[421129439,1777123546893,900.1548,8.5e-05,2]
[421129440,1777123561234,300.0,8.599e-05,2]
[421129441,1777123621574,300.0,8.599e-05,2]
[421129442,1777123621672,150.0,8.599e-05,2]
[421129443,1777123681627,300.0,8.599e-05,2]
[421129444,1777123754300,638.43,8.546e-05,2]
[421129445,1777123801217,1200.0,8.599e-05,2]
[421129446,1777123801248,300.0,8.599e-05,2]
[421129447,1777123801607,150.0,8.599e-05,2]
[421129450,1777123831727,-436.69901449,8.6e-05,2]
[421129451,1777123831740,-2029.30098551,8.6e-05,2]
[421129452,1777123831841,-27534.0,8.6e-05,2]
[421129453,1777123831851,-68986.92230057,8.6e-05,2]
[421129454,1777123831861,-939.54846143,8.6e-05,2]
[421129455,1777123831870,-33091.4848,8.6e-05,2]
[421129456,1777123831880,-300.0,8.6e-05,2]
[421129457,1777123831890,-939.54846142,8.601e-05,2]
[421129458,1777123831900,-4401.6352896,8.601e-05,2]
[421129459,1777123831909,-939.54846142,8.601e-05,2]
[421129460,1777123831919,-300.0,8.604e-05,2]
[421129461,1777123831929,-300.0,8.604e-05,2]
[421129462,1777123831938,-61327.35743572,8.62e-05,2]
[421129463,1777123831948,-151.0,8.697e-05,2]
[421129464,1777123831958,-151.0,8.697e-05,2]
[421129465,1777123831967,-273.9201464,8.699e-05,2]
[421129466,1777123831977,-500.0,8.699e-05,2]
[421129467,1777123831987,-500.0,8.699e-05,2]
[421129468,1777123831997,-500.0,8.699e-05,2]
[421129469,1777123832008,-500.0,8.699e-05,2]
[421129470,1777123832017,-500.0,8.699e-05,2]
[421129471,1777123832027,-500.0,8.699e-05,2]
[421129472,1777123832037,-342.89360557,8.699e-05,2]
[421129473,1777123832047,-500.0,8.699e-05,2]
[421129474,1777123832056,-500.0,8.699e-05,2]
[421129475,1777123832066,-500.0,8.699e-05,2]
[421129476,1777123832076,-424.43725666,8.699e-05,2]
[421129477,1777123832086,-500.0,8.699e-05,2]
[421129478,1777123832096,-31892.01736675,8.7e-05,2]
[421129481,1777123832109,-20347.45104669,8.7e-05,2]
[421129519,1777123840188,-1517.02387064,8.7e-05,2]
[421129521,1777123846092,-1352.0,8.617e-05,2]
[421129530,1777123846363,-1330.65232077,8.617e-05,2]
[421129546,1777123846682,-81477.15949862,8.617e-05,2]
[421129558,1777123846798,-137911.98941331,8.617e-05,2]
[421129560,1777123846808,-108438.20815421,8.7e-05,2]
[421129562,1777124071861,500.0,8.599e-05,2]
[421129563,1777124071900,191.74410248,8.599e-05,2]
[421129564,1777124071936,500.0,8.599e-05,2]
[421129565,1777124072194,500.0,8.599e-05,2]
[421129566,1777124072253,500.0,8.599e-05,2]
[421129567,1777124072568,197.10607966,8.599e-05,2]
[421129568,1777124072629,500.0,8.599e-05,2]
[421129569,1777124072667,500.0,8.599e-05,2]
[421129570,1777124072701,500.0,8.599e-05,2]
[421129571,1777124072747,648.50176668,8.599e-05,2]
[421129572,1777124075779,371.43262284,8.599e-05,2]
[421129573,1777124161689,150.0,8.599e-05,2]
[421129574,1777124162068,300.0,8.599e-05,2]
[421129575,1777124221564,300.0,8.599e-05,2]
[421129576,1777124341306,300.0,8.599e-05,2]
[421129577,1777124341659,150.0,8.599e-05,2]
[421129578,1777124401267,300.0,8.599e-05,2]
[421129579,1777124401301,1200.0,8.599e-05,2]
[421129580,1777124488685,1815.544,8.428e-05,2]
[421129581,1777124488743,185.171,8.428e-05,2]
[421129582,1777124521451,300.0,8.599e-05,2]
[421129583,1777124521892,150.0,8.599e-05,2]
[421129584,1777124581336,300.0,8.599e-05,2]
[421129585,1777124641223,300.0,8.599e-05,2]
[421129586,1777124701270,1200.0,8.599e-05,2]
[421129587,1777124701756,150.0,8.599e-05,2]
[421129588,1777124709951,150.0,7.718e-05,2]
[421129589,1777124710066,150.0,7.889e-05,2]
[421129590,1777124710155,150.0,8.232e-05,2]
[421129591,1777124710188,150.0,8.061e-05,2]
[421129592,1777124710307,150.0,8.404e-05,2]
[421129593,1777124710338,241.96,8.575e-05,2]
[421129594,1777124719955,150.0,7.718e-05,2]
[421129595,1777124719996,150.0,7.889e-05,2]
[421129596,1777124720070,150.0,8.061e-05,2]
[421129597,1777124720141,150.0,8.232e-05,2]
[421129598,1777124720214,150.0,8.404e-05,2]
[421129599,1777124720308,150.0,8.575e-05,2]
[421129600,1777124720479,150.0,7.718e-05,2]
[421129601,1777124720605,150.0,8.147e-05,2]
[421129602,1777124720634,150.0,8.575e-05,2]
[421129603,1777124726468,150.0,7.718e-05,2]
[421129604,1777124726516,150.0,7.932e-05,2]
[421129605,1777124726589,150.0,8.147e-05,2]
[421129606,1777124726658,150.0,8.361e-05,2]
[421129607,1777124726734,150.00000001,8.575e-05,2]
[421129608,1777124731233,150.0,7.718e-05,2]
[421129609,1777124731285,227.43731342,8.575e-05,2]
[421129610,1777124731453,150.0,7.718e-05,2]
[421129611,1777124731492,150.0,7.84e-05,2]
[421129612,1777124731554,150.0,7.963e-05,2]
[421129613,1777124731624,150.0,8.085e-05,2]
[421129614,1777124731659,150.0,8.208e-05,2]
[421129615,1777124731718,150.0,8.33e-05,2]
[421129616,1777124731784,150.0,8.453e-05,2]
[421129617,1777124731899,150.0,8.575e-05,2]
[421129618,1777124738812,150.0,7.718e-05,2]
[421129619,1777124738844,150.0,8.004e-05,2]
[421129620,1777124738902,150.0,8.289e-05,2]
[421129621,1777124738988,150.0,8.575e-05,2]
[421129622,1777124739063,150.0,7.718e-05,2]
[421129623,1777124739128,150.0,7.784e-05,2]
[421129624,1777124739194,150.0,7.85e-05,2]
[421129625,1777124739269,150.0,7.916e-05,2]
[421129626,1777124739337,150.0,7.982e-05,2]
[421129627,1777124739418,150.0,8.048e-05,2]
[421129628,1777124739481,150.0,8.114e-05,2]
[421129629,1777124739599,150.0,8.18e-05,2]
[421129630,1777124739674,150.0,8.246e-05,2]
[421129631,1777124739744,150.0,8.311e-05,2]
[421129632,1777124739818,150.0,8.377e-05,2]
[421129633,1777124739882,150.0,8.443e-05,2]
[421129634,1777124739952,150.0,8.509e-05,2]
[421129635,1777124740023,150.0,8.575e-05,2]
[421129636,1777124881276,300.0,8.599e-05,2]
[421129637,1777124881909,150.0,8.599e-05,2]
[421129638,1777124885750,500.0,8.599e-05,2]
[421129639,1777124887151,500.0,8.599e-05,2]
[421129640,1777124887223,500.0,8.599e-05,2]
[421129641,1777124887263,353.95123667,8.599e-05,2]
[421129642,1777124913223,500.0,8.599e-05,2]
[421129643,1777124913262,187.97425577,8.599e-05,2]
[421129644,1777124913561,500.0,8.599e-05,2]
[421129645,1777125001674,300.0,8.599e-05,2]
[421129648,1777125031940,-2900.55510698,8.6e-05,2]
[421129654,1777125037985,-766.39805676,8.6e-05,2]
[421129655,1777125038028,-647.27975053,8.6e-05,2]
[421129669,1777125045942,-310.546,8.6e-05,2]
[421129688,1777125046688,-12599.50078573,8.6e-05,2]
[421129690,1777125046697,-300.0,8.604e-05,2]
[421129692,1777125046707,-12446.1905504,8.631e-05,2]
[421129693,1777125046716,-1328.27659266,8.667e-05,2]
[421129695,1777125046726,-200.0,8.667e-05,2]
[421129696,1777125046735,-670.58624095,8.667e-05,2]
[421129697,1777125046744,-194.72792766,8.667e-05,2]
[421129698,1777125046754,-8882.6885148,8.667e-05,2]
[421129699,1777125046763,-151.0,8.667e-05,2]
[421129700,1777125046772,-578.20924308,8.667e-05,2]
[421129701,1777125046781,-152.0,8.667e-05,2]
[421129702,1777125046790,-152.0,8.667e-05,2]
[421129703,1777125046799,-152.56372789,8.667e-05,2]
[421129704,1777125046809,-155.77960159,8.667e-05,2]
[421129705,1777125046818,-194.72792766,8.667e-05,2]
[421129706,1777125046827,-195.93456364,8.667e-05,2]
[421129707,1777125046836,-743.50770149,8.667e-05,2]
[421129708,1777125046845,-160.73813854,8.667e-05,2]
[421129709,1777125046855,-174.61919141,8.667e-05,2]
[421129710,1777125046864,-907.94874508,8.667e-05,2]
[421129711,1777125046873,-194.72792766,8.667e-05,2]
[421129712,1777125046883,-644.79446245,8.667e-05,2]
[421129713,1777125046892,-287.07821005,8.667e-05,2]
[421129714,1777125046901,-177.15,8.695e-05,2]
[421129715,1777125046910,-36055.24994726,8.7e-05,2]
[421129716,1777125046936,-1131.9414888,8.7e-05,2]
[421129717,1777125046947,-70517.14626464,8.7e-05,2]
[421129718,1777125047005,-532.6116533,8.7e-05,2]
[421129719,1777125095271,-150.0,8.699e-05,2]
[421129720,1777125095306,-500.0,8.699e-05,2]
[421129721,1777125095340,-500.0,8.699e-05,2]